Cogmind - Beta 14 @@@ ROGUE MODE // 2024.12.07 @ 19:40:13 Player: laeb2 Result: Self-destructed Performance ------------- Evolutions (4) 2000 Regions Visited (11) 2200 Robots Destroyed (186) 930 Value Destroyed (8498) 8498 Prototype IDs (8) 160 Alien Tech Used (0) 0 Bonus (7475) 7475 TOTAL SCORE: 21263 Bonus ------- High Alert Combat Kills 4148 Follower Combat Kills 1111 Entered Garrisons 800 Used RIF Installer 1500 Friendly Fire -84 Cogmind --------- Core Integrity 467/850 Matter 187/300 Energy 21/300 System Corruption 20% Temperature Danger (484) Movement Walking (330) Ox3 Location -6/Garrison Parts ------- > --- POWER (1) -------- Enhanced Nuclear Core > --- PROPULSION (4) --- Light Treads Light Treads Carbon-fiber Leg Carbon-fiber Leg > --- UTILITY (7) ------ Cryofiber Web (fused) Huge Storage Unit Improved Kinecellerator Improved Core Shielding Improved Light Armor Plating Graphene Brace > --- WEAPON (3) ------- Thermic Laser Thermic Laser Minigun > --- INVENTORY (25) --- Light Angular Momentum Engine Light Antimatter Reactor Carbon-fiber Leg Flexi-carbon Leg Advanced Heat Sink Large Storage Unit High-capacity Matter Pod (200) Improved Trap Scanner Improved Kinecellerator Improved Weapon Cycler Graphene Brace Improved Hardlight Generator Lightning Gun Force Rifle Dirty Datajack (20) Remote Datajack Improved Remote Datajack Powered Hammer Piercing Trap Peak State ------------ > --- POWER ------------ Light Angular Momentum Engine > --- PROPULSION ------- Improved Heavy Treads Improved Heavy Treads > --- UTILITY ---------- Cryofiber Web Huge Storage Unit Weapon Mount Improved Kinecellerator Layered Medium Armor Plating Medium Reflective Plating Graphene Brace > --- WEAPON ----------- Force Rifle Heavy Mass Driver > --- INVENTORY -------- Enhanced Nuclear Core Light Angular Momentum Engine Light Angular Momentum Engine Light Treads Light Treads Light Treads Carbon-fiber Leg Carbon-fiber Leg Carbon-fiber Leg Large Storage Unit High-capacity Matter Pod Improved Trap Scanner Weapon Mount Improved Kinecellerator Improved Weapon Cycler Graphene Brace Improved Hardlight Generator Lightning Gun Force Rifle Minigun Dirty Datajack Improved Remote Datajack Powered Hammer Axe Piercing Trap [Rating: 91] Favorites ----------- Power Improved Deuterium Engine Engine Improved Deuterium Engine Power Core Enhanced Nuclear Core Propulsion Light Treads Treads Light Treads Leg Aluminum Leg Hover Unit Airjet Utility Graphene Brace Device Graphene Brace Storage Large Storage Unit Processor Improved Terrain Scan Processor Protection Improved Light Armor Plating Weapon Flak Gun Energy Gun Force Rifle Ballistic Gun Flak Gun Ballistic Cannon Heavy Mass Driver Launcher Subdweller Shrapnel Launcher Impact Weapon Hammer Slashing Weapon Axe Build | -11 -10 -10 -8 -7 -7 -7 -7 -6 -6 -6 -6 ------- Run | Yrd Mat Sub Mat Fac Gar Fac Gar Fac Gar Fac Gar Slots Evolved 8 | . . . 4 2 . . . 2 . . . Power . | . . . . . . . . . . . . Propulsion 2 | . . . 1 1 . . . . . . . Utility 5 | . . . 2 1 . . . 2 . . . Weapon 1 | . . . 1 . . . . . . . . Parts Attached 160 | 8 2 14 28 7 30 6 23 7 22 1 12 Power 13 | 1 1 2 1 . 2 . 1 1 4 . . Engine 12 | 1 1 2 1 . 2 . 1 1 3 . . Core 1 | . . . . . . . . . 1 . . Reactor . | . . . . . . . . . . . . Propulsion 39 | 2 . 2 12 2 5 1 8 . 4 . 3 Treads 30 | 2 . . 9 2 5 1 6 . 4 . 1 Leg 8 | . . 2 2 . . . 2 . . . 2 Wheel . | . . . . . . . . . . . . Hover 1 | . . . 1 . . . . . . . . Flight . | . . . . . . . . . . . . Utility 46 | 2 1 3 7 2 4 1 5 6 9 . 6 Device 22 | 1 . 3 2 1 2 . 3 2 3 . 5 Storage 5 | 1 1 . 1 . . . . 2 . . . Processor 1 | . . . 1 . . . . . . . . Hackware . | . . . . . . . . . . . . Protection 18 | . . . 3 1 2 1 2 2 6 . 1 Artifact . | . . . . . . . . . . . . Weapon 62 | 3 . 7 8 3 19 4 9 . 5 1 3 Energy Gun 12 | 1 . 3 2 . . . 1 . 2 1 2 Energy Cannon . | . . . . . . . . . . . . Ballistic Gun 29 | 2 . 2 5 3 10 4 2 . . . 1 Ballistic Cannon 6 | . . . . . 1 . 3 . 2 . . Launcher 4 | . . . 1 . 3 . . . . . . Special Weapon . | . . . . . . . . . . . . Impact Weapon 6 | . . 2 . . 4 . . . . . . Slashing Weapon 5 | . . . . . 1 . 3 . 1 . . Piercing Weapon . | . . . . . . . . . . . . Special Melee Weapon . | . . . . . . . . . . . . Unidentified Prototypes 4 | . . . 1 1 . . . . 2 . . Parts Lost 46 | . . 4 7 . 4 . 9 1 15 . 6 Power 5 | . . 1 . . 1 . 1 1 1 . . Propulsion 15 | . . 1 2 . 2 . 6 . 3 . 1 Utility 15 | . . 1 2 . . . 1 . 8 . 3 Weapon 11 | . . 1 3 . 1 . 1 . 3 . 2 Highest Loss Streak 6 | . . 2 5 . 2 . 4 1 6 . 5 To Critical Strikes . | . . . . . . . . . . . . Average Slot Usage (%) 88 | . 100 91 88 100 99 96 80 80 77 86 86 Engine 7 | . 14 14 9 7 6 7 6 6 5 . . Treads 19 | . 28 11 9 30 29 30 16 13 14 20 19 Leg 2 | . . 11 13 . . . 2 . . . . Device 19 | . 14 11 10 15 17 23 22 26 25 20 20 Storage 8 | . 14 14 10 7 7 7 7 6 6 6 6 Processor 1 | . . . . 7 5 . . . . . . Protection 7 | . . . 7 7 7 7 7 12 11 20 19 Energy Gun 1 | . . 7 6 . . . . . 2 6 6 Ballistic Gun 11 | . 28 10 18 23 21 13 6 . . . . Ballistic Cannon 3 | . . . . . . 2 5 6 5 6 5 Impact Weapon 1 | . . 9 . . . . . . . . . Slashing Weapon 1 | . . . . . . 2 2 6 2 . . Peak Build Rating 91 | 7 8 9 32 49 53 44 74 86 91 75 77 Average Rating 48 | 5 7 7 18 42 48 42 52 82 82 74 74 On Entrance 41 | . 7 8 9 32 49 42 44 73 86 68 75 Naked Turns . | . . . . . . . . . . . . Heaviest Build 141 | 12 19 22 46 45 59 51 64 132 141 129 131 Greatest Support 150 | 40 40 40 60 88 88 80 150 150 150 115 115 Greatest Overweight (x) 3 | . . 1 2 . . . 1 . 1 1 3 Average Overweight (x) . | . . . . . . . . . . 1 1 Largest Inventory Capacity 25 | 8 10 10 15 15 15 15 15 25 25 25 25 Average Capacity 16 | 7 9 10 12 15 15 15 15 22 25 25 25 Most Carried 25 | 5 10 10 15 15 15 15 15 25 25 24 25 Average Carried 15 | 3 8 9 11 14 14 14 14 16 23 22 24 Final Capacity 25 | 8 10 10 15 15 15 15 15 25 25 25 25 Final Carried 25 | 4 10 10 15 15 15 15 14 25 22 24 19 Class Distribution -------------------- 48% | Scavenger-Tank 28% | Scavenger-Mutant 18% | Mutant Dominant Class ---------------- Mutant | -10/Materials Mutant | -10/Subcaves Scavenger-Tank | -8/Materials Scavenger-Tank | -7/Factory Scavenger-Tank | -7/Garrison Scavenger-Tank | -7/Factory Scavenger-Tank | -7/Garrison Scavenger-Mutant | -6/Factory Scavenger-Mutant | -6/Garrison Scavenger-Tank | -6/Factory Scavenger-Tank | -6/Garrison Resources | -11 -10 -10 -8 -7 -7 -7 -7 -6 -6 -6 -6 ----------- Run | Yrd Mat Sub Mat Fac Gar Fac Gar Fac Gar Fac Gar Matter Collected 7280 | 319 22 407 713 160 1466 228 1339 343 2027 38 218 Remotely . | . . . . . . . . . . . . Salvage Created 8005 | 154 116 356 894 220 1928 133 1944 347 1601 . 312 Parts 390 | 12 6 17 54 12 99 6 73 23 80 . 8 Haulers Intercepted 4 | . . . 3 . . 1 . . . . . Recyclers Shooed 1 | . . . . . . 1 . . . . . Parts Field Recycled . | . . . . . . . . . . . . Retrieved Matter . | . . . . . . . . . . . . Parts Self-Destructed 11 | . . 11 . . . . . . . . . Prevented . | . . . . . . . . . . . . Kills | -11 -10 -10 -8 -7 -7 -7 -7 -6 -6 -6 -6 ------- Run | Yrd Mat Sub Mat Fac Gar Fac Gar Fac Gar Fac Gar Combat Hostiles Destroyed 170 | . 3 8 13 4 41 1 39 10 45 . 6 Melee 4 | . . 1 . . . . 2 . 1 . . Guns 88 | . 3 5 12 4 32 1 25 . 4 . 2 Cannons 65 | . . . . . . . 12 10 40 . 3 AOE 10 | . . . 1 . 9 . . . . . . Classes Destroyed 17 | 2 1 1 5 1 4 1 1 . 1 . . Worker 3 | . . . . 1 . 1 . 1 . . . Builder 3 | . . . . . . 1 . 2 . . . Tunneler 4 | 4 . . . . . . . . . . . Hauler 4 | . . . 3 . . 1 . . . . . Recycler 2 | 1 . . . . . 1 . . . . . Watcher 4 | . . . 1 . 2 1 . . . . . Swarmer 25 | . . . . . 4 . 7 1 11 . 2 Grunt 74 | . 3 2 7 3 26 1 14 3 12 . 3 Brawler 11 | . . . . . 1 . 1 . 9 . . Duelist 5 | . . . . . 2 . . . 3 . . Sentry 24 | . . . 4 1 7 . 8 . 4 . . Specialist 6 | . . . . . . . 3 2 1 . . Hunter 5 | . . . 1 . . . 3 . . . 1 Programmer 10 | . . . . . 1 . 3 3 3 . . Heavy 2 | . . . 1 . . . . 1 . . . Behemoth 2 | . . . . . . . . . 2 . . Subdweller 6 | . . 6 . . . . . . . . . Best Kill Streak 12 | 4 1 2 3 2 12 3 6 3 10 . 2 Combat Bots Only 12 | . 1 2 3 2 12 1 6 2 10 . 2 Max Kills in Single Turn 3 | 1 1 1 1 1 3 1 2 1 1 . 2 Gunslinging 1 | . . . . . 1 . . . . . . Exploded 3 | . . . 1 . 3 . . . . . . Melee 1 | . . 1 . . . . 1 . 1 . . Uniques/NPCs Destroyed . | . . . . . . . . . . . . Combat | -11 -10 -10 -8 -7 -7 -7 -7 -6 -6 -6 -6 -------- Run | Yrd Mat Sub Mat Fac Gar Fac Gar Fac Gar Fac Gar Hostile Shots Fired 1098 | . 11 45 99 18 262 17 316 36 224 . 70 Missed 297 | . 5 7 31 7 70 7 105 8 43 . 14 Damage Taken 11896 | . 71 750 1332 145 2093 267 2319 594 3156 . 1169 Core 1218 | . . 199 148 5 233 53 197 65 122 . 196 Absorbed by Shields . | . . . . . . . . . . . . Reduced by Siege Mode 305 | . . . . . . . . 20 285 . . Redirected to Shielding 145 | . . . 123 . . . . . . . 22 Ignored by Resistances 39 | . . . . . . . . . 39 . . Core Remaining (%) 55 | 100 . 20 73 . . . 30 . . . . Volleys Fired 516 | 13 11 19 75 12 89 12 87 36 132 . 30 Largest 3 | 2 2 2 3 3 3 3 3 1 2 . 3 Hottest 195 | 70 40 100 125 78 105 84 131 75 155 . 195 Shots Fired 991 | 26 22 37 198 36 225 24 173 36 162 . 52 Gun 744 | 26 22 37 197 36 218 18 128 . 29 . 33 Cannon 239 | . . . . . . 6 45 36 133 . 19 Launcher 8 | . . . 1 . 7 . . . . . . Special . | . . . . . . . . . . . . Kinetic 852 | 13 22 9 163 36 225 24 171 36 133 . 20 Thermal 116 | 13 . 28 12 . . . 2 . 29 . 32 Explosive . | . . . . . . . . . . . . Electromagnetic 23 | . . . 23 . . . . . . . . Robot Hit Streak 31 | 4 4 20 15 5 14 5 21 31 31 . 9 Robot Miss Streak 8 | 2 3 1 4 5 6 3 8 2 3 . 3 Penetration Max 1 | . . . . . 1 . 1 1 1 . . Secondary Targets 12 | . . . 1 1 5 . 5 . . . . Max Gunslinging Chain 1 | . . . 1 1 1 . 1 . . . . Shots Hit Robots 771 | 17 11 45 140 24 160 18 171 32 126 . 27 Core Hits 521 | 6 7 12 42 16 147 24 195 12 51 . 9 Critical Kills 17 | . . . 2 . 13 . . . 1 . 1 Critical Parts Destroyed 13 | . . 1 1 . 10 . . . 1 . . Critical Strikes 56 | . . 4 3 . 28 2 4 3 8 . 4 Burn 4 | . . 2 . . . . . . . . 2 Destroy 35 | . . . 3 . 28 . . . 3 . 1 Blast 14 | . . . . . . 2 3 3 5 . 1 Smash 2 | . . 2 . . . . . . . . . Sever 1 | . . . . . . . 1 . . . . Melee Attacks 84 | . . 39 . . 14 . 28 . 3 . . Impact 52 | . . 39 . . 13 . . . . . . Slashing 32 | . . . . . 1 . 28 . 3 . . Piercing . | . . . . . . . . . . . . Sneak Attacks . | . . . . . . . . . . . . Combat Hostiles . | . . . . . . . . . . . . Follow-up Attacks . | . . . . . . . . . . . . Damage Inflicted 24394 | 214 106 815 2083 385 3137 500 5910 2197 7966 . 1081 Guns 9067 | 214 105 387 1966 385 2110 287 2592 . 626 . 395 Cannons 12048 | . . . . . . 213 1691 2197 7261 . 686 Explosions 1144 | . . . 117 . 1027 . . . . . . Melee 2134 | . . 428 . . . . 1627 . 79 . . Ramming 1 | . 1 . . . . . . . . . . Kinetic 20408 | 99 105 106 1684 385 3137 500 4248 2197 7261 . 686 Thermal 1551 | 115 . 281 99 . . . 35 . 626 . 395 Explosive . | . . . . . . . . . . . . Electromagnetic 300 | . . . 300 . . . . . . . . Impact 428 | . . 428 . . . . . . . . . Slashing 1706 | . . . . . . . 1627 . 79 . . Piercing . | . . . . . . . . . . . . Highest Corruption 20 | . . . . . . 3 5 2 20 20 20 Average Corruption 6 | . . . . . . 2 4 1 5 20 20 Corruption Purged . | . . . . . . . . . . . . Corruption Blocked . | . . . . . . . . . . . . Effects 131 | . . . . . . 5 63 3 36 7 17 Message Errors 40 | . . . . . . 4 19 2 8 1 6 Matter Fused 30 | . . . . . . . 15 . 10 2 3 Heat Flow Errors 11 | . . . . . . 1 4 . 3 2 1 Energy Discharges 18 | . . . . . . . 10 1 4 . 3 Parts Fused 2 | . . . . . . . . . 2 . . Data Loss (minor) 15 | . . . . . . . 8 . 4 1 2 Data Loss (major) 5 | . . . . . . . 2 . 3 . . Misfires 6 | . . . . . . . 2 . 2 . 2 Alerts 3 | . . . . . . . 2 . . 1 . Weapon Failures 1 | . . . . . . . 1 . . . . Overload Shots . | . . . . . . . . . . . . Overflow Damage 1133 | . . 66 . . . 68 168 327 435 . 69 Projectiles 997 | . . . . . . 68 98 327 435 . 69 Explosions . | . . . . . . . . . . . . Melee 136 | . . 66 . . . . 70 . . . . Knockbacks 48 | . . 3 . . . 1 4 16 18 . 6 Impact 3 | . . 3 . . . . . . . . . Kinetic 41 | . . . . . . 1 4 13 18 . 5 Secondary 4 | . . . . . . . . 3 . . 1 Self-Inflicted Damage 60 | . . . . . 60 . . . . . . Shots 1 | . . . . . 1 . . . . . . Rammed 1 | . 1 . . . . . . . . . . Targets Rammed 1 | . 1 . . . . . . . . . . Kicked . | . . . . . . . . . . . . Crushed . | . . . . . . . . . . . . Highest Temperature 614 | 54 6 2 123 87 414 115 232 . 425 138 614 Average Temperature 123 | 22 6 2 45 35 117 20 46 . 178 60 227 Received Heat Transfer 2748 | . 36 186 498 66 756 54 549 81 384 . 138 Effects 18 | . . . . . 5 . . . 4 . 9 Shutdowns 1 | . . . . . . . . . . . 1 Energy Bleed 2 | . . . . . 2 . . . . . . Interference 3 | . . . . . 3 . . . . . . Matter Decay 1 | . . . . . . . . . 1 . . Short Circuit 2 | . . . . . . . . . . . 2 Damage (minor) 2 | . . . . . . . . . . . 2 Damage (major) 6 | . . . . . . . . . 3 . 3 Damage (core) 1 | . . . . . . . . . . . 1 Siege Activations 16 | . . . . . . . . 3 13 . . Total Turns 571 | . . . . . . . . 121 450 . . Longest Duration 91 | . . . . . . . . 60 91 . . Robots Corrupted 3 | . . 2 . . . . . . . . 1 Combat Hostiles 3 | . . 2 . . . . . . . . 1 Parts Fried 3 | . . 2 . . . . . . . . 1 Impact Corruptions 8 | . . 4 . . . . . 2 . . 2 Robots Melted 1 | . . . . . . . . . . . 1 Combat Hostiles . | . . . . . . . . . . . . Parts Melted 3 | . . 2 . . . . . . . . 1 Heat Transferred 3752 | 333 . 962 296 . . . 75 . 925 . 1161 Parts Sabotaged . | . . . . . . . . . . . . Parts Stolen . | . . . . . . . . . . . . Parts Stripped . | . . . . . . . . . . . . Power Chain Reactions . | . . . . . . . . . . . . Alert | -11 -10 -10 -8 -7 -7 -7 -7 -6 -6 -6 -6 ------- Run | Yrd Mat Sub Mat Fac Gar Fac Gar Fac Gar Fac Gar Peak Influence 2267 | 25 181 . 219 221 1376 958 2234 1496 2267 1284 1421 Initial 1190 | . 16 . 20 56 18 722 642 1172 986 1190 898 Average 979 | 11 47 . 92 80 768 781 1372 1311 1726 1256 1184 Maximum Alert Level 5 | . . . 1 1 4 3 5 4 5 4 4 Low Security (%) 22 | 100 100 . 88 92 4 . . . . . . Level 1 1 | . . . 11 7 2 . . . . . . Level 2 8 | . . . . . 44 . 1 . . . . Level 3 21 | . . . . . 23 100 39 . 7 . 31 Level 4 25 | . . . . . 25 . 28 100 19 100 68 Level 5 20 | . . . . . . . 30 . 73 . . High Security . | . . . . . . . . . . . . Max Security . | . . . . . . . . . . . . Squads Dispatched 15 | . 1 . 3 . . 5 . 5 . 1 . Investigation 4 | . 1 . 1 . . . . 1 . 1 . Extermination 3 | . . . . . . 1 . 2 . . . Reinforcement 5 | . . . 2 . . 1 . 2 . . . Assault 2 | . . . . . . 2 . . . . . Garrison 1 | . . . . . . 1 . . . . . Intercept . | . . . . . . . . . . . . Searches Triggered . | . . . . . . . . . . . . Construction Impeded . | . . . . . . . . . . . . Haulers Reinforced 1 | . . . . . . 1 . . . . . Active Scanning Responses . | . . . . . . . . . . . . Cargo Convoy Interrupts . | . . . . . . . . . . . . Stealth | -11 -10 -10 -8 -7 -7 -7 -7 -6 -6 -6 -6 --------- Run | Yrd Mat Sub Mat Fac Gar Fac Gar Fac Gar Fac Gar Distress Signals 4 | . 1 . 1 . 2 . . . . . . Communications Jammed . | . . . . . . . . . . . . Distress Signals . | . . . . . . . . . . . . Times Spotted 235 | . 6 9 19 8 49 18 42 14 51 . 19 Peak Tracking Total 11 | . 4 2 4 4 7 8 6 4 11 . 8 Tactical Retreats 16 | . 1 1 1 2 2 1 2 1 5 . . Traps | -11 -10 -10 -8 -7 -7 -7 -7 -6 -6 -6 -6 ------- Run | Yrd Mat Sub Mat Fac Gar Fac Gar Fac Gar Fac Gar Traps Triggered 9 | . . . . . . 3 6 . . . . Indirectly . | . . . . . . . . . . . . Trap Hack Attempts . | . . . . . . . . . . . . Triggered . | . . . . . . . . . . . . Disarmed . | . . . . . . . . . . . . Reprogrammed . | . . . . . . . . . . . . Reused . | . . . . . . . . . . . . Traps Extracted . | . . . . . . . . . . . . Installed . | . . . . . . . . . . . . Triggered . | . . . . . . . . . . . . Most Traps Carried 1 | . . 1 1 1 1 1 1 1 1 1 1 Machines | -11 -10 -10 -8 -7 -7 -7 -7 -6 -6 -6 -6 ---------- Run | Yrd Mat Sub Mat Fac Gar Fac Gar Fac Gar Fac Gar Machines Disabled 14 | . . . 1 . 2 . 3 3 2 . 3 Max in Single Turn 1 | . . . 1 . 1 . 1 . 1 . 1 Garrison Relay 2 | . . . . . 1 . . . . . 1 Machines Repaired . | . . . . . . . . . . . . Machines Dismantled . | . . . . . . . . . . . . Machines Sabotaged . | . . . . . . . . . . . . Overloaded Fab Kills . | . . . . . . . . . . . . Hacking | -11 -10 -10 -8 -7 -7 -7 -7 -6 -6 -6 -6 --------- Run | Yrd Mat Sub Mat Fac Gar Fac Gar Fac Gar Fac Gar Machines Accessed 24 | . 4 . 3 3 4 2 1 2 2 3 . Terminals 18 | . 3 . 3 1 4 1 1 1 2 2 . Fabricators 1 | . . . . 1 . . . . . . . Repair Stations . | . . . . . . . . . . . . Recycling Units 1 | . 1 . . . . . . . . . . Scanalyzers . | . . . . . . . . . . . . Garrison Access 4 | . . . . 1 . 1 . 1 . 1 . Total Hacks 53 | . 14 . 10 3 9 3 1 3 4 6 . Successful 26 | . 8 . 3 3 2 3 1 2 2 2 . Failed 26 | . 5 . 7 . 7 . . 1 2 4 . Catastrophic 8 | . 1 . 4 . 2 . . 1 . . . Database Lockouts 1 | . 1 . . . . . . . . . . Manual 12 | . 8 . 4 . . . . . . . . Terminals 47 | . 13 . 10 1 9 2 1 2 4 5 . Fabricators 1 | . . . . 1 . . . . . . . Repair Stations . | . . . . . . . . . . . . Recycling Units 1 | . 1 . . . . . . . . . . Scanalyzers . | . . . . . . . . . . . . Garrison Access 4 | . . . . 1 . 1 . 1 . 1 . Terminal Hacks 20 | . 7 . 3 1 2 2 1 1 2 1 . Record 1 | . . . . . . . . . . 1 . Robot Analysis 1 | . 1 . . . . . . . . . . Prototype ID Bank 2 | . 2 . . . . . . . . . . Open Door 1 | . . . . . 1 . . . . . . Open DSF 1 | . . . . 1 . . . . . . . Branch Access Points 1 | . 1 . . . . . . . . . . Emergency Access Points 4 | . 1 . . . 1 . 1 . 1 . . Alert Level 2 | . . . 1 . . 1 . . . . . Locate Traps 1 | . 1 . . . . . . . . . . Hauler Manifests 2 | . 1 . 1 . . . . . . . . Zone Layout 3 | . . . 1 . . 1 . 1 . . . Patrol Navigation 1 | . . . . . . . . . 1 . . Fabricator Hacks 1 | . . . . 1 . . . . . . . Network Status 1 | . . . . 1 . . . . . . . Repair Station Hacks . | . . . . . . . . . . . . Recycling Unit Hacks . | . . . . . . . . . . . . Scanalyzer . | . . . . . . . . . . . . Garrison Access Hacks 4 | . . . . 1 . 1 . 1 . 1 . Unlock Access 4 | . . . . 1 . 1 . 1 . 1 . Unauthorized Hacks 1 | . 1 . . . . . . . . . . Terminals . | . . . . . . . . . . . . Fabricators . | . . . . . . . . . . . . Repair Stations . | . . . . . . . . . . . . Recycling Units 1 | . 1 . . . . . . . . . . Tunnel 1 | . 1 . . . . . . . . . . Scanalyzers . | . . . . . . . . . . . . Garrison Access . | . . . . . . . . . . . . Data Cores Recovered 1 | . . . . . . 1 . . . . . Used . | . . . . . . . . . . . . Hacking Detections 18 | . 3 . 3 1 4 1 . 1 2 3 . Full Trace Events 7 | . 1 . 2 . 1 . . 1 1 1 . Feedback Events . | . . . . . . . . . . . . Feedback Blocked . | . . . . . . . . . . . . Robot Schematics Acquired . | . . . . . . . . . . . . Robots Built . | . . . . . . . . . . . . Authchips . | . . . . . . . . . . . . Time . | . . . . . . . . . . . . Total Robot Build Rating . | . . . . . . . . . . . . Part Schematics Acquired . | . . . . . . . . . . . . Parts Built . | . . . . . . . . . . . . Authchips . | . . . . . . . . . . . . Time . | . . . . . . . . . . . . Total Part Build Rating . | . . . . . . . . . . . . Parts Repaired . | . . . . . . . . . . . . Time . | . . . . . . . . . . . . Parts Recycled . | . . . . . . . . . . . . Recycled Matter . | . . . . . . . . . . . . Retrieved Matter . | . . . . . . . . . . . . Retrieved Components . | . . . . . . . . . . . . Parts Scanalyzed . | . . . . . . . . . . . . Part Schematics Acquired . | . . . . . . . . . . . . Parts Damaged . | . . . . . . . . . . . . Bothacking | -11 -10 -10 -8 -7 -7 -7 -7 -6 -6 -6 -6 ------------ Run | Yrd Mat Sub Mat Fac Gar Fac Gar Fac Gar Fac Gar Used RIF Installer 3 | . . . . . 1 . 1 . 1 . . Watcher Feeds 1 | . . . . . . . 1 . . . . Patrol Navigation 1 | . . . . . . . . . 1 . . Robots Hacked . | . . . . . . . . . . . . Non-combat . | . . . . . . . . . . . . Combat . | . . . . . . . . . . . . Robot Hacks Applied . | . . . . . . . . . . . . Relay Couplers Released 14 | . . . . . 7 . . . 3 . 4 Machine Destruction 8 | . . . . . 4 . . . . . 4 Programmers 6 | . . . . . 3 . . . 3 . . Fabnet Peak Effective % . | . . . . . . . . . . . . Robots Rewired 14 | . . . . . 2 . 8 . 4 . . Allies Hacked 1 | . . . . . . . . 1 . . . Hacks Repelled . | . . . . . . . . . . . . Allies | -11 -10 -10 -8 -7 -7 -7 -7 -6 -6 -6 -6 -------- Run | Yrd Mat Sub Mat Fac Gar Fac Gar Fac Gar Fac Gar Total Allies 16 | . . . . . 4 . 8 . 4 . . Largest Group 6 | . . . . . 2 2 6 6 4 4 4 Highest-Rated Group 208 | . . . . . 175 175 208 208 164 164 164 Highest-Rated Ally 95 | . . . . . 95 95 43 43 41 41 41 Total Orders . | . . . . . . . . . . . . Ally Attacks 161 | . . . . . 11 49 9 44 12 8 28 Total Damage 4691 | . . . . . 157 1813 153 831 290 236 1211 Kills 38 | . . . . . 1 13 3 4 1 3 13 Allies Corrupted 1 | . . . . . . 1 . . . . . Allies Melted . | . . . . . . . . . . . . Intel | -11 -10 -10 -8 -7 -7 -7 -7 -6 -6 -6 -6 ------- Run | Yrd Mat Sub Mat Fac Gar Fac Gar Fac Gar Fac Gar Robot Analysis Total 1 | . 1 . . . . . . . . . . Derelict Logs Recovered 1 | . . 1 . . . . . . . . . Drone Launches . | . . . . . . . . . . . . Drone Recoveries . | . . . . . . . . . . . . Exploration | -11 -10 -10 -8 -7 -7 -7 -7 -6 -6 -6 -6 ------------- Run | Yrd Mat Sub Mat Fac Gar Fac Gar Fac Gar Fac Gar Turns Passed 11591 | 128 810 1056 873 573 1972 582 2603 675 1786 163 370 Spaces Moved 4724 | 52 215 544 308 290 989 281 963 303 611 66 102 Core 12 | 12 . . . . . . . . . . . Treads 4270 | 40 215 293 118 290 989 281 963 303 611 66 101 Legs 442 | . . 251 190 . . . . . . . 1 Wheels . | . . . . . . . . . . . . Hover . | . . . . . . . . . . . . Flight . | . . . . . . . . . . . . Fastest Speed 50 | 50 160 120 120 167 160 160 160 160 160 240 240 Average Speed 172 | 134 160 146 175 167 162 160 200 160 169 240 240 Slowest Speed 330 | 160 160 190 260 167 167 160 240 160 240 240 330 Overloaded Moves . | . . . . . . . . . . . . Propulsion Burnouts . | . . . . . . . . . . . . Robots Hopped . | . . . . . . . . . . . . Cave-ins Triggered . | . . . . . . . . . . . . Exploration Rate (%) 34 | 4 41 40 26 12 91 14 79 10 73 3 15 Regions Visited 11 Branch Regions 1 Pre-discovered Areas 1 | . 1 . . . . . . . . . . Known Exits Taken 4 | . . . . 1 . 1 . 1 . 1 . Unknown Exits Taken 4 | 1 1 1 1 . . . . . . . . Scrap Searched 5 | . . 5 . . . . . . . . . Spaces Dug 9 | . . 5 . . . . . 1 3 . . Terrain Destroyed 125 | . . 5 14 . 40 3 9 10 36 . 8 Melee 5 | . . 5 . . . . . . . . . Projectile 66 | . . . . . . 3 9 10 36 . 8 AOE 48 | . . . 14 . 34 . . . . . . Terrain Rammed . | . . . . . . . . . . . . Walls Destroyed . | . . . . . . . . . . . . Machines Disabled . | . . . . . . . . . . . . Actions | -11 -10 -10 -8 -7 -7 -7 -7 -6 -6 -6 -6 --------- Run | Yrd Mat Sub Mat Fac Gar Fac Gar Fac Gar Fac Gar Total 7239 | 83 662 697 489 365 1213 400 1455 458 1177 70 170 Wait 1328 | 1 425 66 42 39 31 93 173 92 351 . 15 Move 4716 | 51 214 543 307 290 988 281 961 303 610 66 102 Hop . | . . . . . . . . . . . . Pick Up 138 | 10 7 9 20 7 17 2 22 16 19 3 6 Fast Attach 23 | 1 . 1 5 3 3 . 9 . . . 1 Attach 64 | 6 1 4 11 2 4 3 6 4 15 1 7 Detach 3 | . . . . . . 2 . 1 . . . Swap 73 | 1 1 9 12 2 23 3 8 3 7 . 4 Drop 105 | . 2 7 17 10 22 4 29 3 6 . 5 Fire 516 | 13 11 19 75 12 89 12 87 36 132 . 30 Melee 84 | . . 39 . . 14 . 28 . 3 . . Ram . | . . . . . . . . . . . . Kick . | . . . . . . . . . . . . Crush 1 | . 1 . . . . . . . . . . Escape Stasis 4 | . . . . . . . 4 . . . . Rewire 184 | . . . . . 22 . 128 . 34 . . Trap . | . . . . . . . . . . . . Miscellaneous . | . . . . . . . . . . . . Route ------- -11/Scrapyard -10/Materials (discovered 2 exits: *Min / [*Sub]) -10/Subcaves -8/Materials -7/Factory -7/Garrison (discovered 3 exits: *Fac x3) -7/Factory -7/Garrison (discovered 3 exits: *Fac x3) -6/Factory (discovered 2 exits: [*Low] / Gar) -6/Garrison (discovered 2 exits: *Fac x2) -6/Factory -6/Garrison History --------- Turn | Location | Event 6 | -11/Scrapyard | Discovered new exit (range 15) 129 | -11/Scrapyard | Entered Materials 303 | -10/Materials | Build established: Mutant 320 | -10/Materials | Discovered new exit (range 13) 323 | -10/Materials | Central database locked down 477 | -10/Materials | Identified exit to Mines 920 | -10/Materials | Discovered new exit (range 4) 939 | -10/Materials | Entered Subcaves 1032 | -10/Subcaves | Ambushed by Subdweller buried in earth 1214 | -10/Subcaves | A swath of the cavern ceiling suddenly collapsed 1298 | -10/Subcaves | Core integrity fell below 50% 1905 | -10/Subcaves | Disturbed a concealed Subdweller 1981 | -10/Subcaves | Discovered new exit (range 5) 1995 | -10/Subcaves | Entered Materials 1995 | -8/Materials | Evolved 4 slots: Propulsion x1, Utility x2, Weapon x1 2292 | -8/Materials | Lost 5 parts (2n3w) 2731 | -8/Materials | Build established: Scavenger-Tank 2804 | -8/Materials | Discovered new exit (range 7) 2868 | -8/Materials | Entered Factory 2868 | -7/Factory | Evolved 2 slots: Propulsion x1, Utility x1 3441 | -7/Factory | Identified exit to Garrison 3441 | -7/Factory | Entered Garrison 3503 | -7/Garrison | Triggered checkpoint 3512 | -7/Garrison | Triggered checkpoint 3556 | -7/Garrison | Destroyed 12 combat bots 3930 | -7/Garrison | Discovered new exit (range 10) 4421 | -7/Garrison | Discovered new exit (range 10) 4448 | -7/Garrison | Triggered checkpoint 4535 | -7/Garrison | Installed Relay Interface Framework 4687 | -7/Garrison | Triggered checkpoint 4805 | -7/Garrison | Garrison Relay disabled 4906 | -7/Garrison | Discovered new exit (range 11) 5120 | -7/Garrison | Triggered checkpoint 5192 | -7/Garrison | Found embedded Infiltrators 5413 | -7/Garrison | Entered Factory 5413 | -7/Factory | Accompanied by 2 allies 5661 | -7/Factory | Build established: Scavenger-Mutant 5813 | -7/Factory | First assault squad dispatched 5913 | -7/Factory | Garrison activated, responded to threat 5987 | -7/Factory | Build established: Scavenger-Tank 5995 | -7/Factory | Identified exit to Garrison 5995 | -7/Factory | Entered Garrison 6053 | -7/Garrison | Lost 4 parts (1p2n1u) 6103 | -7/Garrison | Core integrity fell below 50% 6147 | -7/Garrison | Triggered checkpoint 6241 | -7/Garrison | Triggered checkpoint 6255 | -7/Garrison | Triggered checkpoint 6318 | -7/Garrison | Lost 3 parts (2n1w) 6653 | -7/Garrison | Triggered checkpoint 7035 | -7/Garrison | Triggered checkpoint 7036 | -7/Garrison | Triggered checkpoint 7192 | -7/Garrison | Discovered new exit (range 12) 7275 | -7/Garrison | Triggered checkpoint 7545 | -7/Garrison | Triggered checkpoint 7914 | -7/Garrison | Triggered checkpoint 7945 | -7/Garrison | Discovered new exit (range 10) 8065 | -7/Garrison | Build established: Scavenger-Mutant 8470 | -7/Garrison | Discovered new exit (range 10) 8519 | -7/Garrison | Expanded RIF knowledge: Watcher Feeds 8598 | -7/Garrison | Entered Factory 8598 | -6/Factory | Accompanied by 6 allies 8598 | -6/Factory | Evolved 2 slots: Utility x2 8977 | -6/Factory | Lost 4 allies 9006 | -6/Factory | Discovered new exit (range 19) 9273 | -6/Factory | Identified exit to Garrison 9273 | -6/Factory | Entered Garrison 9381 | -6/Garrison | Triggered checkpoint 9567 | -6/Garrison | Triggered checkpoint 9742 | -6/Garrison | Triggered checkpoint 9971 | -6/Garrison | Triggered checkpoint 9977 | -6/Garrison | Discovered new exit (range 12) 10083 | -6/Garrison | Spotted B-75 Beast 10085 | -6/Garrison | Spotted B-75 Beast 10124 | -6/Garrison | Destroyed B-75 Beast 10136 | -6/Garrison | Destroyed B-75 Beast 10155 | -6/Garrison | Triggered checkpoint 10245 | -6/Garrison | Expanded RIF knowledge: Patrol Navigation 10460 | -6/Garrison | Triggered checkpoint 10611 | -6/Garrison | Build established: Scavenger-Tank 10787 | -6/Garrison | System corruption reached 10% 10839 | -6/Garrison | Lost 6 parts (1p1n3u1w) 10843 | -6/Garrison | Destroyed 10 combat bots 10993 | -6/Garrison | Triggered checkpoint 11007 | -6/Garrison | Discovered new exit (range 14) 11059 | -6/Garrison | Entered Factory 11059 | -6/Factory | Accompanied by 4 allies 11222 | -6/Factory | Identified exit to Garrison 11222 | -6/Factory | Entered Garrison 11222 | -6/Garrison | Accompanied by 4 allies 11328 | -6/Garrison | Triggered checkpoint 11366 | -6/Garrison | Garrison Relay disabled 11592 | -6/Garrison | Self-destructed Last Messages --------------- 11575_ Energy bleed averted by Cryofiber Web. 11577_ Penetrated by Slug. 11577_ Hvy. Mass Driver destroyed. 11577_ Penetrated by Slug. 11578_ Power failure averted by Cryofiber Web. 11579_ Short circuit averted by Cryofiber Web. 11580_ Cryofiber Web broken. 11580_ Overheating: Short circuit. 11580_ Penetrated by Slug. 11582_ Minigun broken. 11582_ Overheating: Short circuit. 11583_ Penetrated by Slug. 11585_ Power failure, Enh. Nuclear Core shutdown. 11585_ Overheating: Lgt. Treads damaged (-20). 11586_ Overheating: Core damaged (-119). 11587_ 6R5ANVP85X==,TNKKRSZ0& GJ7AX 11587_ Penetrated by Slug. 11587_ Phase Shifter destroyed. 11590_ Penetrated by Slug. Map ----- +----------------------------------------------------+ | ?????????????????????????????????????????????????? | | ?????????????????????????????????????????????????? | | ?????????????????????????????????????????????????? | | ?????????????????????????????????????????????????? | | ?????????????????????????????????????????????????? | | ?????????????????????????????????????????????????? | | ?????????????????????????????????????????????????? | | ????????????????????????????????#####????????????? | | ??????????????????######????????# #????????????? | | ??????????????????#! ###"###### #????????????? | | ??????????????????#! #????????????? | | ??????????????????# ! * #????????????? | | ??????????????????#! ## "#########????????????? | | ??????????????????#! ##!=##????????????????????? | | ??????????????????#! ##%!;#????????????????????? | | ??????????????????#! ##[!##?????????????##?????? | | ??????????????????#######%[#?????????????? ?????? | | ???????????????????????#%%%#?????????????? "??"??? | | ???????????????????????##=!#?????????????? "?&"??? | | ????????????????????????#* ########?????? "&&"? " | | ????????????????????????# ##""""=#?????? " " " | | ????????????????????????# #?#=%!#??????? | | ?????????????############ *###!!!######## ^ | | ?????????????# !%=%% !![ """"??? | | ?????????????# ==!%=%*!* "??? | | ?????????????# #########@!*##==%#####+### " "??? | | ???????????????????????#; =###*%=#???# #?? "?????? | | ???????????????????????#!% #?#####???# #??? ?????? | | ???????????????????????#=[h#?????????# #????#????? | | ??????????????????????? +%%#?????????# #?????????? | | ???????????????????????## *#????????## #####?????? | | ????????????????????????#= #????????#! !!!!##????? | | ????????????????????????# !#????????#!= !!!"#????? | | ?????????????????????[= =%#????????#########????? | | ?????????????????[[*%= %![!#?????????????????????? | | ?????????????# ########!##?????????????????????? | | ????????????????????????#%#??????????????????????? | | ????????????????????????# #??????????????????????? | | ???????????????????????? #??????????????????????? | | ????????????????????????##???????????????????????? | | ?????????????????????????????????????????????????? | | ?????????????????????????????????????????????????? | | ?????????????????????????????????????????????????? | | ?????????????????????????????????????????????????? | | ?????????????????????????????????????????????????? | | ?????????????????????????????????????????????????? | | ?????????????????????????????????????????????????? | | ?????????????????????????????????????????????????? | | ?????????????????????????????????????????????????? | | ?????????????????????????????????????????????????? | +----------------------------------------------------+ Best States ------------- Heat Dissipation 64 Coolant Potential 50 Energy Generation 18 Energy Capacity 300 Matter Stores 300 Matter Capacity 300 Sight Range 16 Terrain Scan Range 14 Terrain Scan Density 110 Base Temperature (-) 100 Armor Coverage 900 Resistance: TH 15 Core Shielding 30 Propulsion Shielding 66 Weapon Cycling 20 Phase Shifting 5 Evasion (%) 55 Targeting Accuracy 20 Recoil Reduction 4 Particle Charging 20 Kinecelleration 40 Item Schematics ----------------- None Robot Schematics ------------------ None Fabricated ------------ Nothing Alien Tech Used ----------------- None Achievements -------------- None Challenges ------------ None Game ------ Seed DerelictJunkRigger Manual? 0 Play Time 01:18:53 Cumulative 83.0 hours Start 2024.11.17 @ 07:07:51 End 2024.12.07 @ 19:40:13 Sessions 5 Manual Loads 0 Difficulty Rogue Special Mode None Game No. 101 Rogue 101 Adventurer 0 Explorer 0 Win Type - Total 1 Types 1/0/0/0/0/0/0/0/0 Lore% 58 Gallery% 56 Achievement% 51 Wizard Run 0 Options --------- Layout 2 ASCII 0 Keyboard 0 Movement Mouse Keybinds 0 Fullscreen 1 Font 32/SmallcapsGlow Map View 50x44 Zoom Use 0% Tactical HUD 1 Map Filters NONE Filters NONE Steam 1 RUN: a43a1461-56dd-4d05-a552-8ace58517b2e